bitfinex/quotes_BTCUSD_20250711
["timestamp","ask_amount","ask_price","bid_price","bid_amount"]
[1752250820166,0.02982653,116830.0,116820.0,0.74524589]
[1752250820370,0.02982682,116830.0,116820.0,0.22578993]
[1752250820572,0.00414982,116830.0,116820.0,0.91959945]
[1752250820771,0.00414982,116830.0,116820.0,0.75695599]
[1752250821104,0.00414982,116830.0,116820.0,0.92815962]
[1752250821236,0.00414982,116830.0,116820.0,0.93671972]
[1752250821624,0.00414982,116830.0,116820.0,0.74839589]
[1752250821795,0.00314982,116830.0,116820.0,0.74839589]
[1752250822295,0.00414982,116830.0,116820.0,0.74839589]
[1752250822555,0.00414982,116830.0,116820.0,0.92815962]
[1752250822768,0.00414982,116830.0,116820.0,0.98543926]
[1752250822972,0.00414982,116830.0,116820.0,1.01643926]
[1752250823189,0.00414982,116830.0,116820.0,0.67063589]
[1752250823420,0.00414982,116830.0,116820.0,0.60488589]
[1752250823626,0.02126767,116830.0,116820.0,0.74512589]
[1752250823851,0.03300689,116830.0,116820.0,0.08542993]
[1752250824067,0.03300689,116830.0,116800.0,0.25094426]
[1752250824068,0.03423922,116820.0,116800.0,0.34315]
[1752250824283,0.19690042,116810.0,116800.0,0.08542993]
[1752250824508,0.19690042,116810.0,116790.0,0.1402]
[1752250824509,0.01712232,116800.0,116790.0,0.1402]
[1752250824751,0.00856105,116800.0,116790.0,0.22562993]
[1752250824950,0.00856105,116800.0,116790.0,0.74508589]
[1752250824951,0.03424501,116800.0,116790.0,0.74508589]
[1752250825176,0.03424501,116800.0,116790.0,0.08542993]
[1752250825177,0.17979392,116800.0,116790.0,0.08542993]
[1752250825388,0.01612364,116790.0,116780.0,0.14028]
[1752250825603,0.02568551,116790.0,116780.0,0.74516589]
[1752250825806,0.02568551,116790.0,116780.0,0.22562993]
[1752250825807,0.03224766,116790.0,116780.0,0.22562993]
[1752250826357,0.21205756,116790.0,116780.0,0.22562993]
[1752250826557,0.18837205,116790.0,116780.0,0.22558993]
[1752250826757,0.02886638,116790.0,116780.0,0.22558993]
[1752250827014,0.18837161,116790.0,116780.0,0.22658993]
[1752250827186,0.19693398,116790.0,116780.0,0.22658993]
[1752250827345,0.17223287,116800.0,116780.0,0.22658993]
[1752250827346,0.02310212,116800.0,116780.0,0.74604589]
[1752250827542,0.03166317,116800.0,116780.0,0.74919589]
[1752250827773,0.22587488,116800.0,116780.0,0.74604589]
[1752250827969,0.02568603,116790.0,116780.0,0.74704589]
[1752250828144,0.0171238,116790.0,116780.0,0.74704589]
[1752250828383,0.00856179,116790.0,116780.0,0.74604589]
[1752250828596,0.03497067,116800.0,116780.0,0.40641505]
[1752250828934,0.53690193,116810.0,116790.0,0.60803589]
[1752250829139,0.01712218,116800.0,116790.0,0.60488589]
[1752250829276,0.20547811,116800.0,116790.0,0.08542993]
[1752250829479,0.18835593,116800.0,116790.0,0.08542993]
[1752250829790,0.19153593,116800.0,116780.0,0.14116]
[1752250829969,0.01712372,116790.0,116780.0,0.22758993]
[1752250830205,0.0288636,116800.0,116780.0,0.22658993]
[1752250830410,0.21133442,116800.0,116780.0,0.22558993]
[1752250830618,0.03742524,116800.0,116780.0,0.74504589]
[1752250830761,0.01107762,116800.0,116780.0,0.9163076]
[1752250830968,0.01812094,116810.0,116790.0,0.61017648]
[1752250831169,0.22000181,116810.0,116800.0,0.51945596]
[1752250831419,0.02030072,116810.0,116790.0,0.60488589]
[1752250831585,0.02886133,116810.0,116800.0,0.51945596]
[1752250831939,0.20864089,116810.0,116800.0,0.51945596]
[1752250832138,0.02886177,116810.0,116800.0,0.14016]
[1752250832381,0.03742253,116810.0,116790.0,0.74504589]
[1752250832672,0.03942253,116810.0,116800.0,0.51945596]
[1752250832884,0.03086177,116810.0,116800.0,0.51945596]
[1752250833025,0.02530108,116810.0,116800.0,0.51945596]
[1752250833226,0.03086184,116810.0,116800.0,0.51945596]
[1752250833634,0.02112108,116810.0,116800.0,0.51945596]
[1752250833837,0.01912072,116810.0,116800.0,0.51945596]
[1752250834246,0.02571109,116810.0,116800.0,0.51945596]
[1752250834437,0.03527163,116810.0,116800.0,0.51945596]
[1752250834666,0.04383232,116810.0,116800.0,0.51945596]
[1752250834862,0.00859037,116810.0,116800.0,0.51945596]
[1752250835032,0.00856032,116810.0,116800.0,0.51945596]
[1752250835235,0.01356032,116810.0,116800.0,0.52260596]
[1752250835596,0.005,116810.0,116800.0,0.51945596]
[1752250835781,0.005,116810.0,116800.0,0.52260596]
[1752250836001,0.01356025,116810.0,116800.0,0.52260596]
[1752250836427,0.005,116810.0,116800.0,0.52260596]
[1752250836627,0.005,116810.0,116800.0,1.46173791]
[1752250837045,0.005,116810.0,116800.0,1.38740877]
[1752250837224,0.005,116810.0,116800.0,0.86795281]
[1752250837448,0.005,116810.0,116800.0,1.38740877]
[1752250838489,0.005,116810.0,116800.0,1.54114545]
[1752250838821,0.005,116810.0,116800.0,1.88114545]
[1752250839231,0.005,116810.0,116800.0,1.72740877]
[1752250839438,0.0002,116840.0,116830.0,0.18830756]
[1752250839645,0.00034984,116840.0,116830.0,1.04924552]
[1752250839846,0.00034984,116840.0,116830.0,1.0492456]
[1752250840053,0.00890789,116840.0,116830.0,0.85237889]
[1752250840286,0.00034984,116840.0,116830.0,0.85237889]
[1752250841752,0.00334984,116840.0,116830.0,0.85237889]
[1752250841984,0.00434984,116840.0,116830.0,0.85237889]
[1752250842382,0.00434984,116840.0,116830.0,1.05223575]
[1752250842598,0.00434984,116840.0,116830.0,1.12569468]
[1752250842765,0.00434984,116840.0,116830.0,0.64067589]
[1752250842957,0.00434984,116840.0,116830.0,0.74799589]
[1752250843183,0.03002435,116840.0,116830.0,0.74500589]
[1752250843411,0.02146601,116840.0,116830.0,0.74500589]
[1752250843631,0.00434984,116840.0,116830.0,0.74500589]
[1752250843860,0.00434984,116840.0,116830.0,0.93331338]
[1752250844068,0.00434984,116840.0,116830.0,0.93630338]
[1752250844272,0.00434984,116840.0,116830.0,0.74799589]
[1752250845717,0.03858336,116840.0,116830.0,0.74500589]
[1752250845974,0.01290789,116840.0,116830.0,0.74500589]
[1752250846331,0.03858284,116840.0,116830.0,0.74500589]
[1752250846642,0.01290789,116840.0,116830.0,0.74500589]
[1752250846842,0.00434984,116840.0,116830.0,0.74500589]
[1752250847043,0.01290804,116840.0,116830.0,0.85236225]
[1752250847264,0.01497804,116840.0,116830.0,0.85433225]
[1752250847734,0.01497796,116840.0,116830.0,0.85433225]
[1752250848020,0.00641984,116840.0,116830.0,0.85433225]
[1752250848407,0.01497804,116840.0,116830.0,0.85433225]
[1752250848610,0.00434984,116840.0,116830.0,1.04263967]
[1752250848838,0.00434984,116840.0,116830.0,1.04562967]
[1752250849043,0.00434984,116840.0,116830.0,0.94683231]
[1752250849235,0.00434984,116840.0,116830.0,0.97087331]
[1752250849581,0.00434984,116840.0,116830.0,0.97943245]
[1752250849713,0.00434984,116840.0,116830.0,0.95375479]
[1752250849923,0.00434984,116840.0,116830.0,0.97943259]
[1752250850129,0.00434984,116840.0,116830.0,1.01939152]
[1752250850308,0.00434984,116840.0,116830.0,1.53884748]
[1752250850508,0.00434984,116840.0,116830.0,1.01939152]
[1752250850928,0.00134984,116840.0,116830.0,1.01939152]
[1752250851138,0.00134984,116840.0,116830.0,1.17272438]
[1752250851353,0.00034984,116840.0,116830.0,1.17372438]
[1752250851554,0.35154512,116880.0,116860.0,0.188259]
[1752250851742,0.3602501,116880.0,116870.0,0.79961596]
[1752250851941,0.34870491,116880.0,116870.0,0.88504589]
[1752250852300,0.35726018,116880.0,116870.0,0.88504589]
[1752250852835,0.37437123,116880.0,116870.0,0.88504589]
[1752250853034,0.38591701,116880.0,116870.0,0.88504589]
[1752250853156,0.37736123,116880.0,116870.0,0.88504589]
[1752250853556,0.54847756,116880.0,116870.0,0.36558993]
[1752250853767,0.58107756,116880.0,116870.0,0.36558993]
[1752250854125,0.41396182,116880.0,116870.0,0.36558993]
[1752250854787,0.41603182,116880.0,116870.0,0.88504589]
[1752250855035,0.40947611,116880.0,116870.0,0.88504589]
[1752250855241,0.58914749,116880.0,116870.0,0.36558993]
[1752250855437,0.39236506,116880.0,116870.0,0.88504589]
[1752250855639,0.00614979,116880.0,116870.0,1.11880478]
[1752250856324,0.00614979,116880.0,116870.0,1.11024878]
[1752250856549,0.21704688,116900.0,116870.0,1.11880492]
[1752250856742,0.03790484,116900.0,116890.0,0.51945596]
[1752250856892,0.02286665,116900.0,116890.0,0.79953596]
[1752250857094,0.00069919,116900.0,116890.0,0.79953596]
[1752250857297,0.00925299,116900.0,116890.0,0.88496589]
[1752250857498,0.00069919,116900.0,116890.0,0.88496589]
[1752250857900,0.01086386,116900.0,116890.0,1.06462197]
[1752250858255,0.00669919,116900.0,116890.0,0.89352094]
[1752250858462,0.00069919,116900.0,116890.0,1.06761189]
[1752250858665,0.00469919,116900.0,116890.0,1.06761189]
[1752250858877,0.00469919,116900.0,116890.0,1.14192117]
[1752250859861,0.00469919,116900.0,116890.0,1.14389117]
[1752250860235,0.00269919,116900.0,116890.0,1.14389117]
[1752250860435,0.00269919,116900.0,116890.0,1.25399768]
[1752250860820,0.00269919,116900.0,116890.0,0.7499524]
[1752250861054,0.08893075,116900.0,116890.0,0.23338993]
[1752250861282,0.26657189,116900.0,116890.0,0.14796]
[1752250861484,0.26657175,116900.0,116890.0,0.14796]
[1752250861896,0.07929673,116900.0,116890.0,0.66245596]
[1752250862105,0.26749153,116900.0,116890.0,0.52245596]
[1752250862311,0.08496383,116890.0,116880.0,0.24710651]
[1752250862562,0.0935188,116890.0,116880.0,0.24710651]
[1752250862764,0.09351888,116890.0,116880.0,0.14]
[1752250863124,0.22336552,116890.0,116880.0,0.65945596]
[1752250863327,0.04693004,116900.0,116880.0,0.83912667]
[1752250863538,0.00069919,116900.0,116890.0,0.51945596]
[1752250863751,0.00069919,116900.0,116890.0,0.70210189]
[1752250864165,0.00069919,116900.0,116890.0,0.69354699]
[1752250864376,0.00069919,116900.0,116890.0,0.52244596]
[1752250864509,0.00925299,116900.0,116890.0,0.51945596]
[1752250864709,0.26749167,116900.0,116880.0,0.60488589]
[1752250864917,0.23817108,116880.0,116870.0,0.10710651]
[1752250865182,0.62981148,116880.0,116870.0,0.10710651]
[1752250865532,0.04020943,116870.0,116860.0,0.10710651]
[1752250865734,0.41606387,116870.0,116860.0,0.10710651]
[1752250865934,0.03009,116870.0,116860.0,0.51945596]
[1752250866157,0.70843253,116880.0,116860.0,0.08542993]
[1752250866357,0.008556,116870.0,116860.0,0.22538993]
[1752250866597,0.59061704,116880.0,116860.0,0.74484589]
[1752250866922,0.41950134,116880.0,116860.0,0.74484589]
[1752250867117,0.44259753,116880.0,116870.0,0.51945596]
[1752250867276,0.38623085,116880.0,116870.0,0.51945596]
[1752250867477,0.38020708,116880.0,116870.0,0.51945596]
[1752250867732,0.38319708,116880.0,116870.0,0.51945596]
[1752250867915,0.39175279,116880.0,116870.0,0.51945596]
[1752250868121,0.55431364,116880.0,116870.0,0.51945596]
[1752250868495,0.54575764,116880.0,116870.0,0.51945596]
[1752250868719,0.57425764,116880.0,116870.0,0.51945596]
[1752250868957,0.56570223,116880.0,116870.0,0.51945596]
[1752250869699,0.59690223,116880.0,116870.0,0.52045596]
[1752250869907,0.43434197,116880.0,116870.0,0.51945596]
[1752250870103,0.62256862,116880.0,116870.0,0.51945596]
[1752250870316,0.62256913,116880.0,116870.0,0.51945596]
[1752250870535,0.008556,116870.0,116860.0,0.74484589]
[1752250870726,0.00855585,116870.0,116860.0,0.74484589]
[1752250870922,0.01711178,116870.0,116860.0,0.74484589]
[1752250871528,0.02566792,116870.0,116860.0,0.74484589]
[1752250871730,0.01711178,116870.0,116860.0,0.74484589]
[1752250871933,0.02566792,116870.0,116860.0,0.22538993]
[1752250872132,0.38603085,116880.0,116860.0,0.91699008]
[1752250872381,0.53171273,116880.0,116870.0,0.51945596]
[1752250872554,0.70282876,116880.0,116870.0,0.51945596]
[1752250872891,0.72277335,116880.0,116870.0,0.51945596]
[1752250873036,0.00855629,116870.0,116860.0,0.22538993]
[1752250873233,0.02867872,116870.0,116860.0,0.60588589]
[1752250873433,0.04006593,116870.0,116860.0,0.60488589]
[1752250873642,0.69429362,116880.0,116860.0,0.60488589]
[1752250873855,0.69629362,116880.0,116870.0,0.51945596]
[1752250874056,0.36810612,116880.0,116870.0,0.51945596]
[1752250874259,0.52116695,116880.0,116870.0,0.51945596]
[1752250874657,0.52116687,116880.0,116870.0,0.51945596]
[1752250874860,0.52016687,116880.0,116870.0,0.51945596]
[1752250875073,0.34,116880.0,116870.0,0.65941596]
[1752250875256,0.36566588,116880.0,116870.0,0.65941596]
[1752250875454,0.35711039,116880.0,116870.0,0.65941596]
[1752250875667,0.05939919,116900.0,116870.0,0.94474486]
[1752250875891,0.20638535,116900.0,116890.0,0.51945596]
[1752250876090,0.38076292,116900.0,116890.0,0.51945596]
[1752250876295,0.03491492,116900.0,116890.0,0.51945596]
[1752250876490,0.36379377,116900.0,116890.0,0.65941596]
[1752250876692,0.3637937,116900.0,116890.0,0.65941596]
[1752250876895,0.01624004,116900.0,116890.0,0.65941596]
[1752250877294,0.00169919,116900.0,116890.0,0.65941596]
[1752250877917,0.00069919,116900.0,116890.0,0.13996]
[1752250878129,0.01226292,116900.0,116890.0,0.66155472]
[1752250878340,0.01926292,116900.0,116890.0,0.65941596]
[1752250878590,0.01625292,116900.0,116890.0,0.65941596]
[1752250879017,0.02480672,116900.0,116890.0,0.65941596]
[1752250879217,0.01625285,116900.0,116890.0,0.65941596]
[1752250879430,0.00761642,116900.0,116890.0,0.13996]
[1752250879598,0.00761642,116900.0,116890.0,0.66155472]
[1752250879805,0.00761642,116900.0,116890.0,0.66145596]
[1752250880381,0.00761642,116900.0,116880.0,0.20843658]
[1752250880382,0.00855483,116890.0,116870.0,0.19253644]
[1752250880588,0.00301,116880.0,116870.0,0.33245644]
[1752250880832,0.05177265,116880.0,116870.0,0.24729456]
[1752250881028,0.07279121,116880.0,116870.0,0.24729456]
[1752250881436,0.24390688,116880.0,116870.0,0.24729456]
[1752250881640,0.2686332,116880.0,116870.0,0.24729456]
[1752250881812,0.05300597,116880.0,116870.0,0.24729456]
[1752250882017,0.001,116880.0,116870.0,0.24729456]
[1752250882216,0.001,116880.0,116870.0,0.76675052]
[1752250882469,0.001,116880.0,116870.0,1.03186712]
[1752250882685,0.001,116880.0,116870.0,0.88418045]
[1752250882878,0.001,116880.0,116870.0,0.79391884]
[1752250883085,0.001,116880.0,116870.0,0.97360551]
[1752250883240,0.002,116880.0,116870.0,0.99071765]
[1752250883643,0.002,116880.0,116870.0,0.97360551]
[1752250883848,0.002,116880.0,116870.0,0.96504915]
[1752250884049,0.002,116880.0,116870.0,0.97360551]
[1752250884246,0.002,116880.0,116870.0,0.99071773]
[1752250884581,0.002,116880.0,116870.0,0.77680589]
[1752250884758,0.002,116880.0,116870.0,0.74790589]
[1752250884941,0.002,116880.0,116870.0,1.02645905]
[1752250885141,0.002,116880.0,116870.0,0.85532874]
[1752250885352,0.002,116880.0,116870.0,0.74790589]
[1752250885566,0.002,116880.0,116870.0,0.71231284]
[1752250885781,0.002,116880.0,116870.0,0.85223284]
[1752250886182,0.002,116880.0,116870.0,1.03191959]
[1752250886393,0.002,116880.0,116870.0,1.06121959]
[1752250886594,0.002,116880.0,116870.0,1.04357595]
[1752250886795,0.002,116880.0,116870.0,1.05213224]
[1752250887004,0.002,116880.0,116870.0,0.86388935]
[1752250887243,0.002,116880.0,116870.0,1.03501966]
[1752250887459,0.002,116880.0,116870.0,1.0435761]
[1752250887799,0.002,116880.0,116870.0,1.05213246]
[1752250888155,0.002,116880.0,116870.0,1.06924497]
[1752250888348,0.002,116880.0,116870.0,1.10773246]
[1752250888536,0.002,116880.0,116870.0,1.12484475]
[1752250888741,0.002,116880.0,116870.0,1.12484424]
[1752250890363,0.002,116880.0,116870.0,1.01741729]
[1752250891455,0.001,116880.0,116870.0,0.86038522]
[1752250891637,0.001,116880.0,116870.0,0.99411422]
[1752250892058,0.04663381,116900.0,116880.0,0.18822436]
[1752250892271,0.04663381,116900.0,116890.0,0.13988]
[1752250892483,0.02952642,116900.0,116890.0,0.13988]
[1752250892696,0.03808008,116900.0,116890.0,0.65933596]
[1752250892908,0.05518769,116900.0,116890.0,0.65933596]
[1752250893111,0.03808008,116900.0,116890.0,0.13988]
[1752250893322,0.04663396,116900.0,116890.0,0.13988]
[1752250893531,0.08328791,116900.0,116890.0,0.65933596]
[1752250893745,0.09184186,116900.0,116890.0,0.65933596]
[1752250893954,0.08328776,116900.0,116890.0,0.65933596]
[1752250894158,0.09184171,116900.0,116890.0,0.13988]
[1752250894370,0.25705138,116900.0,116890.0,0.13988]
[1752250894615,0.21561046,116890.0,116880.0,0.10744625]
[1752250894833,0.08347426,116890.0,116880.0,0.24728625]
[1752250895041,0.25457558,116890.0,116880.0,0.13984]
[1752250895883,0.0272,116880.0,116870.0,0.62690221]
[1752250896098,0.0272,116880.0,116870.0,0.85417214]
[1752250896312,0.03876527,116880.0,116870.0,0.85417214]
[1752250896527,0.03021,116880.0,116870.0,0.85417214]
[1752250896737,0.03876527,116880.0,116870.0,0.74672589]
[1752250896950,0.26783299,116880.0,116870.0,0.002]
[1752250897163,0.26783299,116880.0,116870.0,0.14184]
[1752250897375,0.26985299,116880.0,116870.0,0.002]
[1752250897580,0.26129772,116880.0,116870.0,0.002]
[1752250898227,0.017112,116870.0,116860.0,0.24728625]
[1752250898449,0.08559829,116870.0,116860.0,0.33271618]
[1752250898641,0.08559822,116870.0,116860.0,0.33271618]
[1752250898849,0.03203,116870.0,116860.0,0.33271618]
[1752250899112,0.04058593,116870.0,116860.0,0.33271618]
[1752250899319,0.04914193,116870.0,116860.0,0.85317214]
[1752250899911,0.057698,116870.0,116860.0,0.85317214]
[1752250900114,0.057698,116870.0,116860.0,0.24828625]
[1752250900364,0.04914193,116870.0,116860.0,0.24828625]
[1752250900570,0.04058593,116870.0,116860.0,0.14084]
[1752250900934,0.05769815,116870.0,116860.0,0.66029596]
[1752250901157,0.06625451,116870.0,116860.0,0.66029596]
[1752250901529,0.05769815,116870.0,116860.0,0.66029596]
[1752250901738,0.04914193,116870.0,116860.0,0.66029596]
[1752250902067,0.05769807,116870.0,116860.0,0.66029596]
[1752250902268,0.04058593,116870.0,116860.0,0.66029596]
[1752250902473,0.00503,116870.0,116860.0,0.66029596]
[1752250902677,0.0257698,116880.0,116860.0,0.84198667]
[1752250902877,0.04288084,116880.0,116870.0,0.51945596]
[1752250903067,0.00061642,116900.0,116890.0,0.0085549]
[1752250903275,0.00061642,116900.0,116890.0,0.94621465]
[1752250903448,0.00061642,116900.0,116890.0,1.12373197]
[1752250903669,0.00061642,116900.0,116890.0,1.11374169]
[1752250903899,0.00061642,116900.0,116890.0,1.12030622]
[1752250904070,0.00061642,116900.0,116890.0,1.63976218]
[1752250904276,0.00061642,116900.0,116890.0,1.66686218]
[1752250904686,0.00061642,116900.0,116890.0,1.77430843]
[1752250904858,1e-08,116900.0,116890.0,2.36958843]
[1752250905056,1e-08,116900.0,116890.0,2.26214218]
[1752250905359,6.89e-05,116910.0,116900.0,0.24984845]
[1752250905559,1.48e-06,116910.0,116900.0,1.3771503]
[1752250906015,1.48e-06,116910.0,116900.0,1.53390316]
[1752250906354,0.0002,116940.0,116930.0,0.19669799]
[1752250906549,0.0002,116940.0,116930.0,1.21442808]
[1752250906550,0.00034972,116940.0,116930.0,1.21442808]
[1752250906812,0.00034972,116940.0,116930.0,1.21738808]
[1752250907032,0.00034972,116940.0,116930.0,1.76161479]
[1752250907235,0.00034972,116940.0,116930.0,1.68834959]
[1752250907449,0.00034972,116940.0,116930.0,1.81698838]
[1752250907924,0.0002,116960.0,116950.0,0.0513511]
[1752250908131,0.0002,116960.0,116950.0,1.78318203]
[1752250908340,0.0002,116960.0,116950.0,2.01105512]
[1752250908557,0.0002,116960.0,116950.0,1.90677786]
[1752250908936,0.0002,116960.0,116950.0,2.01401512]
[1752250909310,0.0002,116960.0,116950.0,2.01801512]
[1752250909539,0.0002,116960.0,116950.0,2.02001512]
[1752250909774,0.0002,116960.0,116950.0,1.89149695]
[1752250910006,0.0002,116960.0,116950.0,1.91276786]
[1752250910240,0.0002,116960.0,116950.0,2.25276786]
[1752250910491,0.0002,116960.0,116950.0,2.30276786]
[1752250910726,0.0002,116990.0,116980.0,0.1966139]
[1752250910955,0.00034967,116990.0,116980.0,1.7274524]
[1752250911189,0.00034967,116990.0,116980.0,1.7304124]
[1752250911428,0.00034967,116990.0,116980.0,1.79011408]
[1752250911626,0.00034967,116990.0,116980.0,1.73509909]
[1752250911856,0.00034967,116990.0,116980.0,1.30117249]
[1752250912062,0.00134967,116990.0,116980.0,0.90078812]
[1752250912267,0.00134967,116990.0,116980.0,1.02023812]
[1752250912468,0.00034967,116990.0,116980.0,1.01727812]
[1752250912716,0.00034967,116990.0,116980.0,1.02123812]
[1752250913193,0.00034967,116990.0,116980.0,0.68198422]
[1752250913429,0.00034967,116990.0,116980.0,0.22610993]
[1752250913430,0.01183689,116990.0,116980.0,0.22610993]
[1752250913656,0.00328967,116990.0,116980.0,0.74556589]
[1752250913889,0.00034967,116990.0,116980.0,0.93363213]
[1752250914113,0.00034967,116990.0,116980.0,0.93263213]
[1752250914569,0.00034967,116990.0,116980.0,0.75311435]
[1752250914782,0.00034967,116990.0,116980.0,0.87743814]
[1752250915020,0.05533199,116990.0,116970.0,0.72842654]
[1752250915220,0.23483455,116990.0,116980.0,0.13964]
[1752250915442,0.23483455,116990.0,116960.0,0.07609833]
[1752250915443,0.23216208,116980.0,116960.0,0.07609833]
[1752250915679,0.01709729,116970.0,116960.0,0.22506993]
[1752250915894,0.02003729,116970.0,116960.0,0.87739814]
[1752250916316,0.02003729,116970.0,116960.0,0.88594799]
[1752250916317,0.00294,116970.0,116960.0,0.88594799]
[1752250916530,0.04703605,116980.0,116960.0,1.0654964]
[1752250916730,0.04703605,116980.0,116960.0,1.05694662]
[1752250916934,0.03848795,116980.0,116960.0,1.0569462]
[1752250917253,0.04424433,116990.0,116970.0,0.73989544]
[1752250917466,0.03863689,116990.0,116980.0,0.65232821]
[1752250917676,0.03008967,116990.0,116980.0,0.79196821]
[1752250917863,0.02038419,116990.0,116980.0,0.79196821]
[1752250918077,0.26243421,116990.0,116980.0,0.13964]
[1752250918305,0.03434795,116980.0,116970.0,0.21573833]
[1752250918537,0.04289598,116980.0,116970.0,0.21573833]
[1752250918896,0.03728795,116980.0,116970.0,0.13964]
[1752250919109,0.02874,116980.0,116970.0,0.13964]
[1752250919544,0.28144694,116990.0,116970.0,0.79196821]
[1752250919765,0.02003584,116980.0,116970.0,0.79196821]
[1752250919964,0.01148781,116980.0,116970.0,0.21573833]
[1752250920289,0.02003576,116980.0,116970.0,0.21573833]
[1752250920509,0.27624242,116980.0,116970.0,0.07609833]
[1752250920714,0.60114666,116980.0,116970.0,0.07609833]
[1752250920916,0.00854861,116970.0,116960.0,0.21569833]
[1752250921116,0.00294,116970.0,116960.0,0.30112826]
[1752250921343,0.00294,116970.0,116960.0,0.95345647]
[1752250921751,0.41242464,116980.0,116960.0,1.14155481]
[1752250921931,0.41042464,116980.0,116970.0,0.07592393]
[1752250922146,0.41042464,116980.0,116960.0,1.14138038]
[1752250922346,0.41642464,116980.0,116960.0,0.95328207]
[1752250922573,0.37624,116980.0,116970.0,0.72825214]
[1752250922750,0.35454781,116980.0,116970.0,0.72825214]
[1752250922957,0.54555369,116980.0,116970.0,0.07592393]
[1752250923224,0.60454666,116980.0,116970.0,0.21552393]
[1752250923409,0.60454666,116980.0,116970.0,0.1396]
[1752250923614,0.59562304,116970.0,116960.0,0.07592393]
[1752250923813,0.59856304,116970.0,116960.0,0.07592393]
[1752250924271,0.2410979,116960.0,116950.0,0.1396]
[1752250924716,0.09301265,116960.0,116950.0,0.1396]
[1752250924929,0.08713428,116960.0,116950.0,0.1396]
[1752250925145,0.10423376,116960.0,116950.0,0.1396]
[1752250925358,0.05218479,116960.0,116950.0,0.1396]
[1752250925561,0.04951301,116960.0,116950.0,0.79192821]
[1752250925766,0.04096367,116960.0,116950.0,0.79192821]
[1752250925984,0.34294,116970.0,116950.0,1.05692205]
[1752250926201,0.34,116970.0,116960.0,0.65232821]
[1752250926376,0.01153359,116970.0,116960.0,0.92585611]
[1752250926615,0.00328967,116990.0,116970.0,0.17953113]
[1752250926828,0.01183689,116990.0,116980.0,0.79192821]
[1752250927262,0.00328967,116990.0,116980.0,0.79192821]
[1752250927679,0.01183675,116990.0,116980.0,0.79192821]
[1752250927892,0.00034967,116990.0,116980.0,0.79192821]
[1752250928100,0.00889682,116990.0,116980.0,0.79192821]
[1752250928334,0.02599178,116990.0,116980.0,0.79192821]
[1752250928546,0.02893178,116990.0,116980.0,0.1396]
[1752250928715,0.02638419,116990.0,116980.0,0.1396]
[1752250928927,0.03747929,116990.0,116980.0,0.21564471]
[1752250929340,0.0383022,116990.0,116980.0,0.21564471]
[1752250929545,0.01826768,116990.0,116980.0,0.95340285]
[1752250929747,0.01826768,116990.0,116980.0,1.1329207]
[1752250929892,0.01826768,116990.0,116980.0,1.15001734]
[1752250930098,0.01826768,116990.0,116980.0,1.06542424]
[1752250930300,0.01826768,116990.0,116980.0,0.9923692]
[1752250930503,0.01226768,116990.0,116980.0,0.98382074]
[1752250930723,0.01226768,116990.0,116980.0,1.00091759]
[1752250930947,0.01726768,116990.0,116980.0,1.17188698]
[1752250931146,0.00534967,116990.0,116980.0,1.18898355]
[1752250931346,0.00034967,116990.0,116980.0,0.51955877]
[1752250931549,0.00034967,116990.0,116980.0,0.98382074]
[1752250931769,0.00634967,116990.0,116980.0,0.98382074]
[1752250932034,0.00634967,116990.0,116980.0,0.99236913]
[1752250932236,0.00634967,116990.0,116980.0,1.17503677]
[1752250932403,0.00634967,116990.0,116980.0,1.08567029]
[1752250932647,0.00634967,116990.0,116980.0,1.08567037]
[1752250932770,0.00634967,116990.0,116980.0,1.06857417]
[1752250932978,0.00634967,116990.0,116980.0,1.07712234]
[1752250933179,0.00182577,116990.0,116980.0,1.07712234]
[1752250933496,0.00182577,116990.0,116980.0,1.12181839]
[1752250933699,0.00182577,116990.0,116980.0,1.14821839]
[1752250934783,0.00052712,116990.0,116980.0,1.14821839]
[1752250935435,0.00027407,116990.0,116980.0,1.14821839]
[1752250935839,0.00027407,116990.0,116980.0,1.34593465]
[1752250936762,0.00027407,116990.0,116980.0,1.3722073]
[1752250936964,0.00027407,116990.0,116980.0,1.23881501]
[1752250938094,0.00027407,116990.0,116980.0,1.75775093]
[1752250938328,0.00027407,116990.0,116980.0,1.56003467]
[1752250938448,0.00027407,116990.0,116980.0,1.58480542]
[1752250938668,0.0002,117010.0,116980.0,1.58480542]
[1752250938669,0.0002,117010.0,117000.0,0.1965803]
[1752250938888,0.0002,117010.0,117000.0,1.71256002]
[1752250939089,0.0002,117010.0,117000.0,1.74048077]
[1752250939301,0.0002,117010.0,117000.0,1.76175168]
[1752250939513,0.0002,117020.0,117010.0,0.2512635]
[1752250939721,0.0002,117020.0,117010.0,1.22005026]
[1752250939920,0.0002,117020.0,117010.0,1.33825935]
[1752250940345,0.0002,117020.0,117010.0,1.53725462]
[1752250940782,0.00011353,117030.0,117020.0,0.2513467]
[1752250940995,0.00061222,117030.0,117020.0,0.85886255]
[1752250941195,0.00053092,117030.0,117020.0,0.85886255]
[1752250941418,0.00053092,117030.0,117020.0,0.63461585]
[1752250941610,0.00907508,117030.0,117020.0,0.2844252]
[1752250941822,0.02928383,117030.0,117020.0,0.4238652]
[1752250942026,0.08208426,117030.0,117020.0,0.4238652]
[1752250942342,0.26152535,117030.0,117020.0,0.57681114]
[1752250942659,0.06499522,117030.0,117020.0,0.37781587]
[1752250942866,0.02995092,117030.0,117020.0,0.89675179]
[1752250943152,0.00053092,117030.0,117020.0,1.07620821]
[1752250943353,0.00053092,117030.0,117020.0,0.60461257]
[1752250943607,0.00053092,117030.0,117020.0,1.12354849]
[1752250943782,0.00053092,117030.0,117020.0,0.97060255]
[1752250944013,0.00053092,117030.0,117020.0,1.16959782]
[1752250944345,0.00053092,117030.0,117020.0,1.16969782]
[1752250945013,0.00053092,117030.0,117020.0,1.32871045]
[1752250945233,0.00053092,117030.0,117020.0,1.12971518]
[1752250945614,0.00053092,117030.0,117020.0,1.28241045]
[1752250946213,0.00053092,117030.0,117020.0,1.28341045]
[1752250947003,0.00253092,117030.0,117020.0,1.28341045]
[1752250947438,0.00053092,117030.0,117020.0,1.28341045]
[1752250947851,0.00053092,117030.0,117020.0,1.13071518]
[1752250948498,0.00053092,117030.0,117020.0,1.28331291]
[1752250948706,0.00015311,117030.0,117020.0,1.28331291]
[1752250949262,4.417e-05,117030.0,117020.0,1.28331291]
[1752250949470,4.417e-05,117030.0,117020.0,1.13071518]
[1752250950313,4.417e-05,117030.0,117020.0,0.47906663]
[1752250950522,4.417e-05,117030.0,117020.0,1.13071518]
[1752250953198,8.4e-07,117030.0,117020.0,1.47071518]
[1752250953381,8.4e-07,117030.0,117020.0,1.52071518]
[1752250953617,8.4e-07,117030.0,117020.0,1.71971045]
[1752250954117,0.0002,117080.0,117060.0,0.18792365]
[1752250954328,0.0003496,117080.0,117070.0,1.07503671]
[1752250954535,0.0003496,117080.0,117070.0,1.06435986]
[1752250954740,0.0302696,117080.0,117070.0,0.98317103]
[1752250955076,0.0003496,117080.0,117070.0,1.17963401]